[Event "*** SCC Grand Prix: Titled Tuesday Blitz"]
[Site "Chess.com"]
[Date "2020.06.02"]
[Round "1"]
[White "ChessBitl"]
[Black "AminMolaei"]
[Result "0-1"]
[WhiteElo "2355"]
[BlackElo "2712"]
[TimeControl "180+1"]
[EndTime "10:07:41 PDT"]
[Termination "AminMolaei won on time"]

1. e4 {[%clk 0:02:50.1]} 1... c5 {[%clk 0:02:58.5]} 2. Nf3 {[%clk 0:02:49.7]}
2... g6 {[%clk 0:02:55.7]} 3. d4 {[%clk 0:02:49.2]} 3... cxd4 {[%clk 0:02:56.6]}
4. Qxd4 {[%clk 0:02:48.8]} 4... Nf6 {[%clk 0:02:56.3]} 5. e5 {[%clk 0:02:47.8]}
5... Nc6 {[%clk 0:02:56.5]} 6. Qa4 {[%clk 0:02:44]} 6... Nd5 {[%clk 0:02:56.9]}
7. Qe4 {[%clk 0:02:43.4]} 7... Nb6 {[%clk 0:02:55.7]} 8. Nc3 {[%clk 0:02:39.2]}
8... Bg7 {[%clk 0:02:55.5]} 9. Bg5 {[%clk 0:02:35]} 9... d5 {[%clk 0:02:55.8]}
10. exd6 {[%clk 0:02:33.1]} 10... Bf5 {[%clk 0:02:55.2]} 11. dxe7 {[%clk
0:02:21.8]} 11... Bxc3+ {[%clk 0:02:23.1]} 12. bxc3 {[%clk 0:02:20.5]} 12...
Bxe4 {[%clk 0:02:23.6]} 13. exd8=Q+ {[%clk 0:02:18]} 13... Nxd8 {[%clk
0:02:24.5]} 14. Bf6 {[%clk 0:02:02.3]} 14... O-O {[%clk 0:02:23.1]} 15. Bd3
{[%clk 0:01:56.9]} 15... Bxf3 {[%clk 0:02:07.5]} 16. gxf3 {[%clk 0:01:56.5]}
16... Re8+ {[%clk 0:02:08.4]} 17. Kd2 {[%clk 0:01:56.6]} 17... Nd5 {[%clk
0:01:50.7]} 18. Bd4 {[%clk 0:01:56.8]} 18... Ne6 {[%clk 0:01:50]} 19. Rab1
{[%clk 0:01:55.1]} 19... b6 {[%clk 0:01:46.9]} 20. h4 {[%clk 0:01:54.9]} 20...
Rad8 {[%clk 0:01:21.8]} 21. a4 {[%clk 0:01:47.9]} 21... Ndf4 {[%clk 0:01:21]}
22. Bf6 {[%clk 0:01:41.8]} 22... Rd5 {[%clk 0:01:17.5]} 23. c4 {[%clk
0:01:31.9]} 23... Ra5 {[%clk 0:01:13.5]} 24. Rb5 {[%clk 0:01:27.1]} 24... Rxa4
{[%clk 0:01:11]} 25. h5 {[%clk 0:01:27.5]} 25... Nc5 {[%clk 0:01:07.8]} 26. Rh4
{[%clk 0:01:05.6]} 26... Nxh5 {[%clk 0:01:00.9]} 27. Rxh5 {[%clk 0:01:04.4]}
27... gxh5 {[%clk 0:00:59.2]} 28. Rb1 {[%clk 0:01:03.8]} 28... Nxd3 {[%clk
0:00:50.2]} 29. Rg1+ {[%clk 0:00:58]} 29... Kf8 {[%clk 0:00:49.8]} 30. cxd3
{[%clk 0:00:58.5]} 30... Ra2+ {[%clk 0:00:44.2]} 31. Kc3 {[%clk 0:00:55.5]}
31... Rxf2 {[%clk 0:00:43.2]} 32. Rg3 {[%clk 0:00:48.6]} 32... Re6 {[%clk
0:00:37.2]} 33. Bd4 {[%clk 0:00:47.3]} 33... Rf1 {[%clk 0:00:34.8]} 34. Rh3
{[%clk 0:00:46.7]} 34... h6 {[%clk 0:00:32.2]} 35. c5 {[%clk 0:00:37.3]} 35...
Ke7 {[%clk 0:00:31.6]} 36. cxb6 {[%clk 0:00:32.5]} 36... axb6 {[%clk 0:00:32.5]}
37. Rxh5 {[%clk 0:00:27]} 37... Rxf3 {[%clk 0:00:31.4]} 38. Rb5 {[%clk
0:00:27.6]} 38... Rc6+ {[%clk 0:00:27.3]} 39. Kd2 {[%clk 0:00:26.7]} 39... Rd6
{[%clk 0:00:27.6]} 40. Bxb6 {[%clk 0:00:18]} 40... Rfxd3+ {[%clk 0:00:26.4]} 41.
Ke2 {[%clk 0:00:18]} 41... R6d5 {[%clk 0:00:22.5]} 42. Rb2 {[%clk 0:00:12.8]}
42... Ke6 {[%clk 0:00:21.4]} 43. Be3 {[%clk 0:00:10.7]} 43... h5 {[%clk
0:00:21.1]} 44. Rb6+ {[%clk 0:00:09.8]} 44... Kf5 {[%clk 0:00:21.5]} 45. Rh6
{[%clk 0:00:07.2]} 45... Ke4 {[%clk 0:00:21.8]} 0-1

[Event "*** SCC Grand Prix: Titled Tuesday Blitz"]
[Site "Chess.com"]
[Date "2020.06.02"]
[Round "1"]
[White "DaggiGretarsson"]
[Black "not_najdorfs_player"]
[Result "1-0"]
[WhiteElo "2642"]
[BlackElo "2307"]
[TimeControl "180+1"]
[EndTime "10:07:41 PDT"]
[Termination "DaggiGretarsson won by resignation"]

1. d4 {[%clk 0:02:58.6]} 1... d5 {[%clk 0:02:59.2]} 2. c4 {[%clk 0:02:58.4]}
2... e6 {[%clk 0:02:57.3]} 3. Nc3 {[%clk 0:02:58]} 3... Nf6 {[%clk 0:02:57.1]}
4. Bf4 {[%clk 0:02:57.4]} 4... Be7 {[%clk 0:02:55.4]} 5. e3 {[%clk 0:02:57.2]}
5... O-O {[%clk 0:02:55.1]} 6. Qc2 {[%clk 0:02:57]} 6... c6 {[%clk 0:02:54.5]}
7. h3 {[%clk 0:02:49]} 7... Nbd7 {[%clk 0:02:54.2]} 8. Nf3 {[%clk 0:02:48.9]}
8... b6 {[%clk 0:02:53.6]} 9. a3 {[%clk 0:02:42.5]} 9... Bb7 {[%clk 0:02:53.7]}
10. Rd1 {[%clk 0:02:36.5]} 10... Re8 {[%clk 0:02:44.4]} 11. Bd3 {[%clk
0:02:31.4]} 11... Nf8 {[%clk 0:02:44.6]} 12. O-O {[%clk 0:02:29]} 12... Ng6
{[%clk 0:02:44.7]} 13. Bh2 {[%clk 0:02:28.1]} 13... Bd6 {[%clk 0:02:42.8]} 14.
Ne5 {[%clk 0:02:28]} 14... Qe7 {[%clk 0:02:35.2]} 15. f4 {[%clk 0:02:04.3]}
15... c5 {[%clk 0:02:22.3]} 16. cxd5 {[%clk 0:02:02.4]} 16... exd5 {[%clk
0:02:16.5]} 17. g4 {[%clk 0:01:39.2]} 17... cxd4 {[%clk 0:01:37.8]} 18. exd4
{[%clk 0:01:38.7]} 18... Rac8 {[%clk 0:01:38.1]} 19. Qb3 {[%clk 0:01:21.6]}
19... Ne4 {[%clk 0:01:35.1]} 20. Nxd5 {[%clk 0:01:19.2]} 20... Bxd5 {[%clk
0:01:30.4]} 21. Qxd5 {[%clk 0:01:18.9]} 21... Nf6 {[%clk 0:01:30.3]} 22. Qb3
{[%clk 0:01:16.5]} 22... Qb7 {[%clk 0:01:25]} 23. Bc4 {[%clk 0:00:56.7]} 23...
Re7 {[%clk 0:00:48.8]} 24. g5 {[%clk 0:00:45.9]} 24... Ne8 {[%clk 0:00:29.8]}
25. Bd5 {[%clk 0:00:42.1]} 25... Qc7 {[%clk 0:00:26.2]} 26. Rd3 {[%clk 0:00:27]}
26... a5 {[%clk 0:00:20.5]} 27. Rc3 {[%clk 0:00:26.7]} 27... Qd8 {[%clk
0:00:19.9]} 28. Nxf7 {[%clk 0:00:23.2]} 28... Rxf7 {[%clk 0:00:16.8]} 29. Bxf7+
{[%clk 0:00:23]} 29... Kh8 {[%clk 0:00:17.2]} 30. Bxg6 {[%clk 0:00:16.9]} 30...
hxg6 {[%clk 0:00:16.2]} 31. Qe6 {[%clk 0:00:16.9]} 31... Rxc3 {[%clk 0:00:14.2]}
32. bxc3 {[%clk 0:00:17.1]} 32... Nc7 {[%clk 0:00:14.6]} 33. Qxg6 {[%clk
0:00:16.6]} 33... Nd5 {[%clk 0:00:14.6]} 34. f5 {[%clk 0:00:11.1]} 34... Bxh2+
{[%clk 0:00:12.5]} 35. Kxh2 {[%clk 0:00:11]} 35... Qc7+ {[%clk 0:00:13.1]} 36.
Kh1 {[%clk 0:00:10.5]} 36... Ne3 {[%clk 0:00:03.7]} 37. Qh5+ {[%clk 0:00:08]}
37... Kg8 {[%clk 0:00:03.8]} 38. Qe8+ {[%clk 0:00:08]} 38... Kh7 {[%clk
0:00:04]} 39. Qxe3 {[%clk 0:00:07.1]} 39... Qc6+ {[%clk 0:00:03.8]} 40. Kg1
{[%clk 0:00:06.5]} 40... Qd6 {[%clk 0:00:03.6]} 41. g6+ {[%clk 0:00:06]} 41...
Kh8 {[%clk 0:00:03.7]} 42. Qe8+ {[%clk 0:00:06]} 1-0

[Event "*** SCC Grand Prix: Titled Tuesday Blitz"]
[Site "Chess.com"]
[Date "2020.06.02"]
[Round "1"]
[White "LizaSolovyova"]
[Black "starplatinum2030"]
[Result "1-0"]
[WhiteElo "2503"]
[BlackElo "2092"]
[TimeControl "180+1"]
[EndTime "10:07:42 PDT"]
[Termination "LizaSolovyova won by checkmate"]

1. d4 {[%clk 0:03:00.5]} 1... d5 {[%clk 0:02:58.5]} 2. Nc3 {[%clk 0:03:00.2]}
2... c5 {[%clk 0:02:57]} 3. e4 {[%clk 0:02:59]} 3... dxe4 {[%clk 0:02:47.5]} 4.
d5 {[%clk 0:02:58.5]} 4... Nf6 {[%clk 0:02:43]} 5. Bg5 {[%clk 0:02:51.8]} 5...
h6 {[%clk 0:02:36]} 6. Bh4 {[%clk 0:02:46.4]} 6... Qb6 {[%clk 0:02:03]} 7. Rb1
{[%clk 0:02:32.6]} 7... e5 {[%clk 0:01:47.4]} 8. Bxf6 {[%clk 0:02:09.1]} 8...
Qxf6 {[%clk 0:01:43]} 9. Nxe4 {[%clk 0:02:08.4]} 9... Qg6 {[%clk 0:01:42.7]} 10.
Ng3 {[%clk 0:01:52.6]} 10... e4 {[%clk 0:01:31]} 11. Be2 {[%clk 0:01:36.2]}
11... Bd6 {[%clk 0:01:29.8]} 12. Bh5 {[%clk 0:01:34.6]} 12... Qh7 {[%clk
0:01:14.7]} 13. Bg4 {[%clk 0:01:01.9]} 13... O-O {[%clk 0:00:54.4]} 14. Bxc8
{[%clk 0:01:00.8]} 14... Rxc8 {[%clk 0:00:54.2]} 15. Qg4 {[%clk 0:01:00.8]}
15... f5 {[%clk 0:00:54.6]} 16. Nxf5 {[%clk 0:00:54.1]} 16... Na6 {[%clk
0:00:29.4]} 17. Nxd6 {[%clk 0:00:50.9]} 17... Rf8 {[%clk 0:00:29.8]} 18. Ne2
{[%clk 0:00:47.2]} 18... e3 {[%clk 0:00:23.7]} 19. O-O {[%clk 0:00:39.6]} 19...
exf2+ {[%clk 0:00:17.6]} 20. Kh1 {[%clk 0:00:39.6]} 20... Qxc2 {[%clk
0:00:16.5]} 21. Nc3 {[%clk 0:00:34.9]} 21... Nb4 {[%clk 0:00:08.5]} 22. Qe6+
{[%clk 0:00:32.2]} 22... Kh7 {[%clk 0:00:08]} 23. Qe4+ {[%clk 0:00:31.7]} 23...
Qxe4 {[%clk 0:00:08]} 24. Ndxe4 {[%clk 0:00:32.6]} 24... c4 {[%clk 0:00:02.9]}
25. Rxf2 {[%clk 0:00:32.2]} 25... Rxf2 {[%clk 0:00:01.6]} 26. Nxf2 {[%clk
0:00:33.1]} 26... Re8 {[%clk 0:00:01.6]} 27. Kg1 {[%clk 0:00:32.4]} 27... Rd8
{[%clk 0:00:02.5]} 28. Rd1 {[%clk 0:00:31.7]} 28... Nc2 {[%clk 0:00:02.6]} 29.
d6 {[%clk 0:00:29.6]} 29... Ne3 {[%clk 0:00:02.6]} 30. Rd2 {[%clk 0:00:28.1]}
30... Nf5 {[%clk 0:00:03.5]} 31. Nfe4 {[%clk 0:00:27.4]} 31... Kg6 {[%clk
0:00:03.3]} 32. g4 {[%clk 0:00:26.4]} 32... Ne3 {[%clk 0:00:01.9]} 33. h3 {[%clk
0:00:25.6]} 33... Kf7 {[%clk 0:00:01.6]} 34. Kf2 {[%clk 0:00:25.6]} 34... Nd5
{[%clk 0:00:01.5]} 35. Rxd5 {[%clk 0:00:25.1]} 35... Ke6 {[%clk 0:00:02.4]} 36.
Ke3 {[%clk 0:00:25.3]} 36... Rxd6 {[%clk 0:00:03.3]} 37. Rxd6+ {[%clk 0:00:25]}
37... Ke5 {[%clk 0:00:03]} 38. Rd7 {[%clk 0:00:21.7]} 38... g6 {[%clk
0:00:02.3]} 39. Rxb7 {[%clk 0:00:21.6]} 39... g5 {[%clk 0:00:01.8]} 40. Rxa7
{[%clk 0:00:21.2]} 40... h5 {[%clk 0:00:01.7]} 41. gxh5 {[%clk 0:00:20.8]} 41...
g4 {[%clk 0:00:01.5]} 42. hxg4 {[%clk 0:00:19.7]} 42... Ke6 {[%clk 0:00:02.4]}
43. h6 {[%clk 0:00:19.9]} 43... Ke5 {[%clk 0:00:03.3]} 44. h7 {[%clk 0:00:20]}
44... Ke6 {[%clk 0:00:04.2]} 45. Ra6+ {[%clk 0:00:18.9]} 45... Ke5 {[%clk
0:00:04.2]} 46. h8=Q# {[%clk 0:00:19.1]} 1-0

[Event "*** SCC Grand Prix: Titled Tuesday Blitz"]
[Site "Chess.com"]
[Date "2020.06.02"]
[Round "1"]
[White "manitodeplomo"]
[Black "Pintacara"]
[Result "1-0"]
[WhiteElo "2607"]
[BlackElo "2274"]
[TimeControl "180+1"]
[EndTime "10:07:46 PDT"]
[Termination "manitodeplomo won on time"]

1. c4 {[%clk 0:02:51.6]} 1... e5 {[%clk 0:02:56.5]} 2. g3 {[%clk 0:02:51.5]}
2... Nc6 {[%clk 0:02:56.6]} 3. Bg2 {[%clk 0:02:52]} 3... d6 {[%clk 0:02:55.8]}
4. Nc3 {[%clk 0:02:52.9]} 4... g6 {[%clk 0:02:55.2]} 5. Rb1 {[%clk 0:02:51.8]}
5... Bg7 {[%clk 0:02:53.7]} 6. b4 {[%clk 0:02:52.7]} 6... Be6 {[%clk 0:02:52.2]}
7. b5 {[%clk 0:02:48.6]} 7... Na5 {[%clk 0:02:45.6]} 8. d3 {[%clk 0:02:34.8]}
8... Ne7 {[%clk 0:02:37.9]} 9. Qa4 {[%clk 0:02:33.5]} 9... b6 {[%clk 0:02:36.8]}
10. Bxa8 {[%clk 0:02:31.9]} 10... Qxa8 {[%clk 0:02:37.7]} 11. e4 {[%clk
0:02:31.9]} 11... h5 {[%clk 0:02:33.3]} 12. h3 {[%clk 0:02:27.5]} 12... Nb7
{[%clk 0:02:25.5]} 13. Ba3 {[%clk 0:02:19]} 13... f5 {[%clk 0:02:17.2]} 14. f3
{[%clk 0:02:18.1]} 14... Bh6 {[%clk 0:01:58]} 15. Nge2 {[%clk 0:02:12.6]} 15...
Be3 {[%clk 0:01:56.9]} 16. Kd1 {[%clk 0:02:03.8]} 16... g5 {[%clk 0:01:21.3]}
17. Kc2 {[%clk 0:02:01]} 17... Kd7 {[%clk 0:01:16.5]} 18. Rbf1 {[%clk
0:01:55.5]} 18... f4 {[%clk 0:00:54.4]} 19. Nd1 {[%clk 0:01:50.5]} 19... Bc5
{[%clk 0:00:52.7]} 20. gxf4 {[%clk 0:01:37.9]} 20... gxf4 {[%clk 0:00:48.1]} 21.
Bxc5 {[%clk 0:01:33.5]} 21... Nxc5 {[%clk 0:00:49]} 22. Qa3 {[%clk 0:01:32.2]}
22... a6 {[%clk 0:00:46.2]} 23. bxa6 {[%clk 0:01:31.1]} 23... Nxa6 {[%clk
0:00:39.5]} 24. h4 {[%clk 0:01:25]} 24... Nc6 {[%clk 0:00:35.8]} 25. Ndc3 {[%clk
0:01:19.8]} 25... Nab4+ {[%clk 0:00:32.4]} 26. Kb3 {[%clk 0:01:17.8]} 26... Nxd3
{[%clk 0:00:27.9]} 27. Qxa8 {[%clk 0:01:11]} 27... Rxa8 {[%clk 0:00:28.8]} 28.
Rfg1 {[%clk 0:01:10.4]} 28... Nc5+ {[%clk 0:00:27.7]} 29. Kc2 {[%clk 0:01:09.7]}
29... Bxc4 {[%clk 0:00:27.8]} 30. Rg7+ {[%clk 0:01:09.4]} 30... Ke6 {[%clk
0:00:20]} 31. Rhg1 {[%clk 0:01:08.8]} 31... Ne7 {[%clk 0:00:17.2]} 32. R1g5
{[%clk 0:01:01.9]} 32... Bxe2 {[%clk 0:00:15.8]} 33. Nxe2 {[%clk 0:01:00.8]}
33... Rxa2+ {[%clk 0:00:16.2]} 34. Kd1 {[%clk 0:01:01.2]} 34... d5 {[%clk
0:00:14]} 35. Rxh5 {[%clk 0:00:57.8]} 35... dxe4 {[%clk 0:00:12.2]} 36. Rh6+
{[%clk 0:00:56.7]} 36... Kd7 {[%clk 0:00:12.5]} 37. fxe4 {[%clk 0:00:55]} 37...
f3 {[%clk 0:00:12.6]} 38. Ng3 {[%clk 0:00:53.6]} 38... f2 {[%clk 0:00:11.7]} 39.
Rhh7 {[%clk 0:00:53.2]} 39... Nxe4 {[%clk 0:00:11.8]} 40. Rxe7+ {[%clk
0:00:52.7]} 40... Kd6 {[%clk 0:00:09.2]} 41. Rd7+ {[%clk 0:00:50.3]} 41... Kc6
{[%clk 0:00:08.7]} 42. Rxc7+ {[%clk 0:00:49.7]} 42... Kb5 {[%clk 0:00:09.1]} 43.
Nf1 {[%clk 0:00:48.7]} 43... Kb4 {[%clk 0:00:06.9]} 44. Rhe7 {[%clk 0:00:45.2]}
44... Nd2 {[%clk 0:00:05.9]} 45. Ke2 {[%clk 0:00:34.8]} 45... Nc4+ {[%clk
0:00:02.6]} 46. Kf3 {[%clk 0:00:33.6]} 46... Nd2+ {[%clk 0:00:02.9]} 47. Nxd2
{[%clk 0:00:30.5]} 47... Rxd2 {[%clk 0:00:03.8]} 48. Kg2 {[%clk 0:00:30.9]}
48... b5 {[%clk 0:00:03.1]} 49. Rxe5 {[%clk 0:00:29.9]} 49... Rd4 {[%clk
0:00:02.5]} 50. Kxf2 {[%clk 0:00:24.3]} 50... Rxh4 {[%clk 0:00:02.2]} 51. Rb7
{[%clk 0:00:24.3]} 1-0

[Event "*** SCC Grand Prix: Titled Tuesday Blitz"]
[Site "Chess.com"]
[Date "2020.06.02"]
[Round "1"]
[White "albi1999"]
[Black "OrtizMarcos"]
[Result "1-0"]
[WhiteElo "2658"]
[BlackElo "2322"]
[TimeControl "180+1"]
[EndTime "10:07:47 PDT"]
[Termination "albi1999 won by resignation"]

1. d4 {[%clk 0:03:00.9]} 1... Nf6 {[%clk 0:02:59.3]} 2. c4 {[%clk 0:03:00.4]}
2... g6 {[%clk 0:02:59.5]} 3. Nc3 {[%clk 0:02:59.2]} 3... Bg7 {[%clk 0:02:59.6]}
4. g3 {[%clk 0:02:56.2]} 4... O-O {[%clk 0:02:59]} 5. Bg2 {[%clk 0:02:56.5]}
5... d6 {[%clk 0:02:59.1]} 6. Nf3 {[%clk 0:02:56]} 6... Nbd7 {[%clk 0:02:59.6]}
7. O-O {[%clk 0:02:56.1]} 7... e5 {[%clk 0:03:00.2]} 8. e4 {[%clk 0:02:56.5]}
8... exd4 {[%clk 0:03:00.4]} 9. Nxd4 {[%clk 0:02:57.4]} 9... Re8 {[%clk
0:03:01.3]} 10. h3 {[%clk 0:02:57.3]} 10... a6 {[%clk 0:03:01.4]} 11. Be3 {[%clk
0:02:53.1]} 11... Rb8 {[%clk 0:03:01]} 12. a4 {[%clk 0:02:27.3]} 12... Ne5
{[%clk 0:02:58.4]} 13. b3 {[%clk 0:02:24.1]} 13... Bd7 {[%clk 0:02:57.9]} 14.
Qc2 {[%clk 0:02:15.5]} 14... Qc8 {[%clk 0:02:57.5]} 15. Kh2 {[%clk 0:02:14.9]}
15... h5 {[%clk 0:02:58.1]} 16. f3 {[%clk 0:02:07.7]} 16... h4 {[%clk
0:02:55.4]} 17. g4 {[%clk 0:02:04.6]} 17... Bxg4 {[%clk 0:02:43.5]} 18. fxg4
{[%clk 0:01:51]} 18... Nfxg4+ {[%clk 0:02:42.6]} 19. hxg4 {[%clk 0:01:51.9]}
19... Nxg4+ {[%clk 0:02:42.7]} 20. Kg1 {[%clk 0:01:48.6]} 20... Nxe3 {[%clk
0:02:43.6]} 21. Qd3 {[%clk 0:01:48.6]} 21... Nxf1 {[%clk 0:01:34.1]} 22. Rxf1
{[%clk 0:01:49.5]} 22... c6 {[%clk 0:01:34]} 23. Nce2 {[%clk 0:01:44.7]} 23...
Be5 {[%clk 0:01:30.2]} 24. Bh3 {[%clk 0:01:42.9]} 24... Qd8 {[%clk 0:01:28.8]}
25. Kh1 {[%clk 0:01:41.3]} 25... Qe7 {[%clk 0:01:15.6]} 26. Nc3 {[%clk
0:01:26.5]} 26... Qg5 {[%clk 0:00:55.4]} 27. Nce2 {[%clk 0:01:13.2]} 27... Rbd8
{[%clk 0:00:51.3]} 28. Nf3 {[%clk 0:01:07.6]} 28... Qe7 {[%clk 0:00:47.9]} 29.
Nxe5 {[%clk 0:01:03.3]} 29... dxe5 {[%clk 0:00:46]} 30. Qe3 {[%clk 0:01:02]}
30... Kg7 {[%clk 0:00:45.1]} 31. Ng1 {[%clk 0:01:01.2]} 31... f6 {[%clk
0:00:36.4]} 32. Nf3 {[%clk 0:01:00.5]} 32... g5 {[%clk 0:00:36]} 33. Rg1 {[%clk
0:00:59.7]} 33... Kh8 {[%clk 0:00:34.8]} 34. Bf5 {[%clk 0:00:48.8]} 34... Rd6
{[%clk 0:00:35]} 35. Nxh4 {[%clk 0:00:45.7]} 35... Qg7 {[%clk 0:00:30.7]} 36. c5
{[%clk 0:00:35.9]} 36... Rd4 {[%clk 0:00:27.8]} 37. Ng6+ {[%clk 0:00:27.8]}
37... Kg8 {[%clk 0:00:27.6]} 38. Qh3 {[%clk 0:00:28.2]} 38... Kf7 {[%clk
0:00:20.5]} 39. Qh5 {[%clk 0:00:26.2]} 39... Rg8 {[%clk 0:00:14.9]} 40. Nxe5+
{[%clk 0:00:19]} 40... Ke7 {[%clk 0:00:14.7]} 41. Ng6+ {[%clk 0:00:18.9]} 41...
Kd8 {[%clk 0:00:14.7]} 42. Rd1 {[%clk 0:00:17.9]} 42... Rxd1+ {[%clk 0:00:14.2]}
43. Qxd1+ {[%clk 0:00:18.8]} 43... Ke8 {[%clk 0:00:10.6]} 44. Qd6 {[%clk
0:00:19.1]} 44... Rh8+ {[%clk 0:00:09.1]} 45. Nxh8 {[%clk 0:00:17.9]} 45...
Qxh8+ {[%clk 0:00:10]} 46. Qh2 {[%clk 0:00:17.3]} 46... Qxh2+ {[%clk 0:00:07.4]}
47. Kxh2 {[%clk 0:00:18.2]} 47... Kd8 {[%clk 0:00:07.7]} 48. Kg3 {[%clk
0:00:18]} 48... b5 {[%clk 0:00:08.6]} 49. a5 {[%clk 0:00:18]} 1-0

[Event "*** SCC Grand Prix: Titled Tuesday Blitz"]
[Site "Chess.com"]
[Date "2020.06.02"]
[Round "1"]
[White "ViktoriyaTarasova"]
[Black "Firegrizzly"]
[Result "1/2-1/2"]
[WhiteElo "2265"]
[BlackElo "2589"]
[TimeControl "180+1"]
[EndTime "10:07:50 PDT"]
[Termination "Game drawn by repetition"]

1. d4 {[%clk 0:03:00.9]} 1... Nf6 {[%clk 0:02:57.6]} 2. c4 {[%clk 0:03:00.5]}
2... g6 {[%clk 0:02:56.9]} 3. Nc3 {[%clk 0:03:00.3]} 3... Bg7 {[%clk 0:02:57.5]}
4. e4 {[%clk 0:03:00.3]} 4... O-O {[%clk 0:02:58]} 5. h3 {[%clk 0:03:00]} 5...
d6 {[%clk 0:02:57.4]} 6. Be3 {[%clk 0:02:58.7]} 6... Na6 {[%clk 0:02:55.7]} 7.
Be2 {[%clk 0:02:57.1]} 7... c5 {[%clk 0:02:40.7]} 8. d5 {[%clk 0:02:55.2]} 8...
Nc7 {[%clk 0:02:39]} 9. a4 {[%clk 0:02:53.5]} 9... a6 {[%clk 0:02:38.1]} 10. Nf3
{[%clk 0:02:49.8]} 10... e5 {[%clk 0:02:32.8]} 11. dxe6 {[%clk 0:02:46.2]} 11...
Nxe6 {[%clk 0:02:32]} 12. O-O {[%clk 0:02:42.3]} 12... b6 {[%clk 0:02:29.8]} 13.
Qc2 {[%clk 0:02:28.6]} 13... Bb7 {[%clk 0:02:29.8]} 14. Rad1 {[%clk 0:02:26.5]}
14... Qe7 {[%clk 0:02:27.3]} 15. Nd5 {[%clk 0:02:19.6]} 15... Nxd5 {[%clk
0:02:24.2]} 16. exd5 {[%clk 0:02:19.1]} 16... Nc7 {[%clk 0:02:18.6]} 17. Rfe1
{[%clk 0:02:14.2]} 17... Rfe8 {[%clk 0:02:12.7]} 18. Qb3 {[%clk 0:02:08.3]}
18... Rab8 {[%clk 0:02:06]} 19. Bf4 {[%clk 0:01:49.3]} 19... Qd7 {[%clk
0:02:04.9]} 20. Qxb6 {[%clk 0:01:33.6]} 20... Red8 {[%clk 0:02:01.2]} 21. Qa5
{[%clk 0:01:24.3]} 21... Ba8 {[%clk 0:01:51.2]} 22. Rb1 {[%clk 0:01:19.8]} 22...
Rb3 {[%clk 0:01:32.3]} 23. Bd1 {[%clk 0:00:57.5]} 23... Rxb2 {[%clk 0:01:16.6]}
24. Rxb2 {[%clk 0:00:56.9]} 24... Bxb2 {[%clk 0:01:15.8]} 25. Qd2 {[%clk
0:00:56.8]} 25... Bg7 {[%clk 0:01:14.2]} 26. Bc2 {[%clk 0:00:55.2]} 26... Ne8
{[%clk 0:01:11.9]} 27. Bg5 {[%clk 0:00:53.7]} 27... f6 {[%clk 0:00:56.4]} 28.
Bf4 {[%clk 0:00:52.1]} 28... Nc7 {[%clk 0:00:52.7]} 29. h4 {[%clk 0:00:49]}
29... Re8 {[%clk 0:00:52.5]} 30. Rxe8+ {[%clk 0:00:47.2]} 30... Nxe8 {[%clk
0:00:52.4]} 31. Qa5 {[%clk 0:00:44.6]} 31... Bb7 {[%clk 0:00:48.3]} 32. Qb6
{[%clk 0:00:43.4]} 32... Bc8 {[%clk 0:00:47.2]} 33. Qb8 {[%clk 0:00:38.2]} 33...
Bf8 {[%clk 0:00:46.4]} 34. Kf1 {[%clk 0:00:30.1]} 34... Qb7 {[%clk 0:00:46.2]}
35. Qxb7 {[%clk 0:00:29.2]} 35... Bxb7 {[%clk 0:00:47.1]} 36. Bd2 {[%clk
0:00:27.9]} 36... Bc8 {[%clk 0:00:47]} 37. Bd3 {[%clk 0:00:28]} 37... Bd7 {[%clk
0:00:46.7]} 38. a5 {[%clk 0:00:27.6]} 38... Ba4 {[%clk 0:00:44.8]} 39. g3 {[%clk
0:00:27.2]} 39... Ng7 {[%clk 0:00:44.3]} 40. Ke2 {[%clk 0:00:26.8]} 40... Be7
{[%clk 0:00:44.5]} 41. g4 {[%clk 0:00:24.5]} 41... Bd8 {[%clk 0:00:44]} 42. Ne1
{[%clk 0:00:20.7]} 42... Bd7 {[%clk 0:00:42.4]} 43. f3 {[%clk 0:00:20.8]} 43...
f5 {[%clk 0:00:42]} 44. g5 {[%clk 0:00:21.2]} 44... f4 {[%clk 0:00:39.9]} 45.
Ng2 {[%clk 0:00:21.1]} 45... Nh5 {[%clk 0:00:39.6]} 46. Kf2 {[%clk 0:00:21.1]}
46... Bh3 {[%clk 0:00:38.9]} 47. Bc2 {[%clk 0:00:17.3]} 47... Kf7 {[%clk
0:00:36.5]} 48. Ba4 {[%clk 0:00:16.9]} 48... Ke7 {[%clk 0:00:36]} 49. Bc6 {[%clk
0:00:16.7]} 49... Bc8 {[%clk 0:00:33.9]} 50. Nxf4 {[%clk 0:00:16.8]} 50... Nxf4
{[%clk 0:00:32]} 51. Bxf4 {[%clk 0:00:17.4]} 51... Bxa5 {[%clk 0:00:32.5]} 52.
Ke3 {[%clk 0:00:16.5]} 52... Bb4 {[%clk 0:00:31.9]} 53. Kd3 {[%clk 0:00:15.9]}
53... a5 {[%clk 0:00:32.2]} 54. Bg3 {[%clk 0:00:14.5]} 54... Bd7 {[%clk
0:00:31.8]} 55. Bxd7 {[%clk 0:00:13.5]} 55... Kxd7 {[%clk 0:00:31.5]} 56. Kc2
{[%clk 0:00:14.2]} 56... a4 {[%clk 0:00:30.9]} 57. Kb2 {[%clk 0:00:13.8]} 57...
Kc7 {[%clk 0:00:30.1]} 58. Ka2 {[%clk 0:00:14.3]} 58... Kd7 {[%clk 0:00:30.4]}
59. Kb2 {[%clk 0:00:14.8]} 59... Kc7 {[%clk 0:00:28.7]} 60. Ka2 {[%clk
0:00:15.2]} 60... Kd7 {[%clk 0:00:28.2]} 61. Kb2 {[%clk 0:00:15.5]} 1/2-1/2